fUSD/lending_fUSD_20240630
["ID","MTS","AMOUNT","RATE_DAILY","PERIOD"]
[330736716,1719745839078,-305.14561368,0.00013574,2]
[330736717,1719745839089,-5356.97039948,0.00013574,2]
[330736720,1719745839099,-8582.54579053,0.00013574,2]
[330736721,1719745839110,-214.2,0.00013699,2]
[330736723,1719745839121,-200.0,0.00013699,2]
[330736725,1719745839132,-1187.08,0.00013699,2]
[330736726,1719745839142,-266.04,0.00013699,2]
[330736728,1719745839152,-1362.38,0.00013699,2]
[330736729,1719745839163,-385.10220627,0.00013715,2]
[330736730,1719745839174,-1128.7280898,0.0001372,2]
[330736731,1719745839184,-950.95707992,0.0001372,2]
[330736732,1719745839195,-428.03124125,0.00013833,2]
[330736733,1719745839206,-518.46321348,0.00013849,2]
[330736734,1719745839216,-11562.61925508,0.0001386,2]
[330736735,1719745839230,-10457.30062008,0.0001386,2]
[330736736,1719745839240,-707.09969,0.0001386,2]
[330736737,1719745839251,-231.38350399,0.00013864,2]
[330736738,1719745839261,-19232.68452326,0.00013891,2]
[330736739,1719745839274,-973.93476286,0.00013891,2]
[330736740,1719745839286,-1938.03321388,0.00013891,2]
[330736741,1719745839296,-183.31556253,0.00013891,2]
[330736742,1719745839306,-300.44083554,0.00013891,2]
[330736743,1719745839316,-1000.0,0.00013892,2]
[330736744,1719745839326,-943.21038805,0.00013892,2]
[330736766,1719745840569,-422.26457859,0.00013892,2]
[330736767,1719745840581,-83.36913336,0.00013892,2]
[330736768,1719745840590,-261.25643093,0.00013899,2]
[330736769,1719745840634,-21.68218609,0.00013899,2]
[330736770,1719745840643,-155.33507312,0.00013899,2]
[330736771,1719745840652,-227.13595734,0.000139,2]
[330736772,1719745840662,-120.46922634,0.000139,2]
[330736773,1719745840673,-48.44690083,0.000139,2]
[330736774,1719745840683,-299.96042372,0.000139,2]
[330736775,1719745840692,-400.74980078,0.000139,2]
[330736776,1719745840702,-313.44,0.0001398,2]
[330736777,1719745840711,-313.44,0.0001398,2]
[330736778,1719745840721,-313.44,0.00013981,2]
[330736779,1719745840730,-277.8502992,0.00013989,3]
[330736780,1719745840742,-618.0497008,0.00013989,3]
[330736781,1719745840751,-118.56847801,0.00013989,3]
[330736782,1719745840764,-757.54152199,0.00013989,3]
[330736783,1719745840773,-870.14,0.00013989,3]
[330736784,1719745840783,-266.39296798,0.00013989,3]
[330736785,1719745840860,-233.60703202,0.00013989,3]
[330736786,1719745840870,-608.24,0.00013989,3]
[330736787,1719745840880,-244.49967463,0.00013989,3]
[330736788,1719745840891,-669.09032537,0.00013989,3]
[330736789,1719745840901,-524.54,0.00013989,3]
[330736790,1719745840910,-500.0,0.00013989,3]
[330736791,1719745840919,-572.17545446,0.00013989,3]
[330736799,1719745842853,-552.29454554,0.00013989,3]
[330736800,1719745842863,-571.07769239,0.00013989,3]
[330736801,1719745842875,-350.13230761,0.00013989,3]
[330736802,1719745842885,-671.56,0.00013989,3]
[330736803,1719745842895,-858.63981759,0.00013989,3]
[330736804,1719745842908,-365.70911874,0.00013989,3]
[330736805,1719745842919,-41.35106367,0.00013989,3]
[330736806,1719745842929,-500.0,0.00013989,3]
[330736807,1719745842939,-475.23146611,0.00013989,2]
[330736808,1719745842949,-155.80404999,0.00013989,2]
[330736809,1719745842960,-1285.57,0.00013989,3]
[330736810,1719745842970,-155.0,0.00013989,2]
[330736811,1719745842980,-201.6882348,0.00013989,2]
[330736812,1719745842990,-1467.12,0.00013989,3]
[330736813,1719745843000,-269.07929124,0.00013989,2]
[330736814,1719745843010,-819.96,0.00013989,3]
[330736815,1719745843020,-4989.95,0.00013989,3]
[330736816,1719745843030,-932.01,0.00013989,3]
[330736817,1719745843039,-500.0,0.0001399,3]
[330736818,1719745843049,-415.91,0.0001399,3]
[330736819,1719745843059,-500.0,0.0001399,3]
[330736820,1719745843068,-500.0,0.0001399,3]
[330736821,1719745843078,-500.0,0.0001399,3]
[330736822,1719745843088,-518.09,0.0001399,3]
[330736823,1719745843098,-500.0,0.0001399,3]
[330736824,1719745843108,-954.56,0.0001399,3]
[330736825,1719745843118,-692.78,0.0001399,3]
[330736826,1719745843128,-718.55,0.0001399,3]
[330736827,1719745843138,-500.0,0.0001399,3]
[330736828,1719745843148,-500.0,0.0001399,3]
[330736829,1719745843158,-500.0,0.0001399,3]
[330736830,1719745843168,-909.05,0.0001399,3]
[330736831,1719745843179,-500.0,0.0001399,3]
[330736832,1719745843189,-500.0,0.0001399,3]
[330736833,1719745843198,-500.0,0.0001399,3]
[330736834,1719745843208,-212.44857776,0.0001399,3]
[330736835,1719745843221,-287.55142224,0.0001399,3]
[330736836,1719745843231,-500.0,0.0001399,3]
[330736837,1719745843241,-513.6,0.0001399,3]
[330736838,1719745843251,-500.0,0.0001399,3]
[330736839,1719745843261,-732.61,0.0001399,3]
[330736840,1719745843272,-1026.53,0.0001399,3]
[330736841,1719745843282,-500.0,0.0001399,3]
[330736842,1719745843292,-500.0,0.0001399,3]
[330736843,1719745843302,-500.0,0.0001399,3]
[330736844,1719745843312,-500.0,0.0001399,3]
[330736845,1719745843321,-500.0,0.0001399,3]
[330736846,1719745843331,-596.39,0.0001399,3]
[330736847,1719745843340,-537.92,0.0001399,3]
[330736848,1719745843350,-710.15,0.0001399,3]
[330736849,1719745843360,-314.26182911,0.0001399,3]
[330736850,1719745843422,-185.73817089,0.0001399,3]
[330736851,1719745843432,-241.42071037,0.0001399,3]
[330736852,1719745843444,-258.57928963,0.0001399,3]
[330736853,1719745843453,-194.66751041,0.0001399,3]
[330736854,1719745843499,-0.00474372,0.0001399,3]
[330736855,1719745843511,-305.32774587,0.0001399,3]
[330736856,1719745843521,-809.21,0.0001399,3]
[330736857,1719745843532,-500.0,0.0001399,3]
[330736858,1719745843542,-818.66,0.0001399,3]
[330736859,1719745843552,-500.0,0.0001399,3]
[330736860,1719745843562,-500.0,0.0001399,3]
[330736861,1719745843571,-761.08,0.0001399,3]
[330736862,1719745843581,-500.0,0.0001399,3]
[330736863,1719745843591,-500.0,0.0001399,3]
[330736865,1719745843600,-277.8420235,0.0001399,3]
[330736867,1719745843612,-222.1579765,0.0001399,3]
[330736868,1719745843622,-500.0,0.0001399,3]
[330736869,1719745843632,-500.0,0.0001399,3]
[330736870,1719745843642,-500.0,0.0001399,3]
[330736871,1719745843651,-386.73834276,0.0001399,3]
[330736872,1719745843663,-113.26165724,0.0001399,3]
[330736873,1719745843673,-500.0,0.0001399,3]
[330736874,1719745843683,-611.27704276,0.0001399,3]
[330736875,1719745843694,-39.21295724,0.0001399,3]
[330736876,1719745843704,-514.5,0.0001399,3]
[330736877,1719745843713,-500.0,0.0001399,3]
[330736878,1719745843723,-500.0,0.0001399,3]
[330736879,1719745843733,-184.30817276,0.0001399,3]
[330736880,1719745843746,-561.84182724,0.0001399,3]
[330736881,1719745843756,-500.0,0.0001399,3]
[330736882,1719745843765,-500.0,0.0001399,3]
[330736883,1719745843775,-500.0,0.0001399,3]
[330736884,1719745843787,-585.88,0.0001399,3]
[330736885,1719745843796,-3095.06,0.0001399,3]
[330736886,1719745843806,-500.0,0.0001399,3]
[330736887,1719745843815,-807.66,0.0001399,3]
[330736888,1719745843825,-500.0,0.0001399,3]
[330736889,1719745843835,-500.0,0.0001399,3]
[330736890,1719745843844,-453.45,0.0001399,3]
[330736891,1719745843854,-279.3043665,0.0001399,3]
[330736892,1719745843865,-220.6956335,0.0001399,3]
[330736893,1719745843875,-266.21629198,0.0001399,3]
[330736894,1719745843911,-233.78370802,0.0001399,3]
[330736895,1719745843920,-500.0,0.0001399,3]
[330736896,1719745843930,-866.4,0.0001399,3]
[330736897,1719745843940,-209.06263841,0.0001399,3]
[330736898,1719745843952,-290.93736159,0.0001399,3]
[330736899,1719745843961,-500.0,0.0001399,3]
[330736900,1719745843971,-500.0,0.0001399,3]
[330736901,1719745843981,-500.0,0.0001399,3]
[330736902,1719745843991,-604.34,0.0001399,3]
[330736903,1719745844000,-500.0,0.0001399,3]
[330736904,1719745844010,-2313.59,0.0001399,3]
[330736905,1719745844020,-861.65,0.0001399,3]
[330736906,1719745844031,-500.0,0.0001399,3]
[330736907,1719745844040,-500.0,0.0001399,3]
[330736908,1719745844049,-500.0,0.0001399,3]
[330736909,1719745844059,-500.0,0.0001399,3]
[330736910,1719745844069,-500.0,0.0001399,3]
[330736911,1719745844079,-693.79,0.0001399,3]
[330736912,1719745844089,-540.08,0.0001399,3]
[330736913,1719745844099,-1499.7,0.0001399,3]
[330736914,1719745844108,-500.0,0.0001399,3]
[330736915,1719745844118,-583.33,0.0001399,3]
[330736916,1719745844127,-500.0,0.0001399,3]
[330736917,1719745844138,-590.75,0.0001399,3]
[330736918,1719745844147,-500.0,0.0001399,3]
[330736919,1719745844157,-500.0,0.0001399,3]
[330736920,1719745844167,-500.0,0.0001399,3]
[330736921,1719745844177,-500.0,0.0001399,3]
[330736922,1719745844186,-500.0,0.0001399,3]
[330736923,1719745844196,-500.0,0.0001399,3]
[330736924,1719745844205,-500.0,0.0001399,3]
[330736925,1719745844214,-500.0,0.0001399,3]
[330736926,1719745844224,-542.35,0.0001399,3]
[330736927,1719745844233,-668.33,0.0001399,3]
[330736928,1719745844243,-500.0,0.0001399,3]
[330736929,1719745844252,-500.0,0.0001399,3]
[330736930,1719745844260,-500.0,0.0001399,3]
[330736931,1719745844270,-780.52,0.0001399,3]
[330736932,1719745844280,-500.0,0.0001399,2]
[330736933,1719745844290,-500.0,0.0001399,3]
[330736934,1719745844299,-584.92,0.0001399,3]
[330736935,1719745844309,-1149.1,0.0001399,3]
[330736936,1719745844319,-593.24,0.0001399,3]
[330736937,1719745844329,-500.0,0.0001399,3]
[330736938,1719745844338,-500.0,0.0001399,3]
[330736939,1719745844348,-500.0,0.0001399,3]
[330736940,1719745844357,-601.91,0.0001399,3]
[330736941,1719745844366,-500.0,0.0001399,3]
[330736942,1719745844377,-521.57,0.0001399,3]
[330736943,1719745844390,-500.0,0.0001399,3]
[330736944,1719745844399,-500.0,0.0001399,3]
[330736945,1719745844409,-500.0,0.0001399,3]
[330736946,1719745844418,-1607.46,0.0001399,3]
[330736947,1719745844429,-500.0,0.0001399,3]
[330736948,1719745844439,-609.76,0.0001399,3]
[330736949,1719745844448,-500.0,0.0001399,3]
[330736950,1719745844457,-521.92586838,0.0001399,3]
[330736972,1719745845743,-72.30413162,0.0001399,3]
[330736974,1719745845752,-500.0,0.0001399,3]
[330736975,1719745845761,-204.01517212,0.0001399,3]
[330736976,1719745845774,-295.98482788,0.0001399,3]
[330736978,1719745845784,-500.0,0.0001399,3]
[330736980,1719745845793,-126.27786501,0.0001399,3]
[330736992,1719745845963,-373.72213499,0.0001399,3]
[330736994,1719745845973,-219.12473739,0.0001399,3]
[330736996,1719745845985,-280.87526261,0.0001399,3]
[330736998,1719745845995,-1584.07,0.0001399,3]
[330737000,1719745846005,-500.0,0.0001399,3]
[330737002,1719745846014,-500.0,0.0001399,3]
[330737004,1719745846023,-500.0,0.0001399,3]
[330737005,1719745846032,-500.0,0.0001399,3]
[330737006,1719745846041,-18.60308468,0.0001399,3]
[330737007,1719745846053,-481.39691532,0.0001399,3]
[330737008,1719745846062,-500.0,0.0001399,3]
[330737009,1719745846071,-500.0,0.0001399,3]
[330737010,1719745846080,-500.0,0.0001399,3]
[330737011,1719745846090,-500.0,0.0001399,3]
[330737012,1719745846099,-500.0,0.0001399,3]
[330737013,1719745846108,-766.23,0.0001399,3]
[330737014,1719745846117,-333.03260906,0.0001399,3]
[330737015,1719745846128,-166.96739094,0.0001399,3]
[330737016,1719745846137,-500.0,0.0001399,3]
[330737017,1719745846147,-438.17,0.0001399,3]
[330737018,1719745846156,-899.8,0.0001399,3]
[330737019,1719745846166,-678.01,0.0001399,3]
[330737020,1719745846175,-500.0,0.0001399,3]
[330737021,1719745846184,-500.0,0.0001399,3]
[330737022,1719745846194,-2679.34065652,0.0001399,3]
[330737023,1719745846230,-3960.32934348,0.0001399,3]
[330737024,1719745846239,-500.0,0.0001399,3]
[330737025,1719745846248,-500.0,0.0001399,3]
[330737026,1719745846257,-812.14,0.0001399,3]
[330737027,1719745846267,-500.0,0.0001399,3]
[330737028,1719745846276,-500.0,0.0001399,3]
[330737029,1719745846286,-243.92322807,0.0001399,3]
[330737030,1719745846298,-806.13677193,0.0001399,3]
[330737031,1719745846307,-425.52177236,0.0001399,3]
[330737032,1719745846318,-74.47822764,0.0001399,3]
[330737033,1719745846328,-500.0,0.0001399,3]
[330737034,1719745846337,-500.0,0.0001399,3]
[330737035,1719745846347,-500.0,0.0001399,3]
[330737036,1719745846356,-500.0,0.0001399,3]
[330737037,1719745846364,-62.06137824,0.0001399,3]
[330737038,1719745846377,-836.80862176,0.0001399,3]
[330737039,1719745846387,-500.0,0.0001399,3]
[330737040,1719745846397,-500.0,0.0001399,3]
[330737041,1719745846406,-366.24912906,0.0001399,3]
[330737042,1719745846417,-133.75087094,0.0001399,3]
[330737043,1719745846427,-667.91,0.0001399,3]
[330737044,1719745846436,-68.87023263,0.0001399,3]
[330737045,1719745846448,-431.12976737,0.0001399,3]
[330737046,1719745846457,-727.73,0.0001399,3]
[330737047,1719745846466,-509.94,0.0001399,3]
[330737048,1719745846475,-4.4406538,0.0001399,3]
[330737052,1719745984169,2951.28491817,0.00011199,2]
[330737055,1719746069704,9236.41322618,0.00011097,2]
[330737059,1719746164858,580.45590034,0.00011097,2]
[330737062,1719746186631,464.95,0.00010713,2]
[330737063,1719746187768,2093.87866846,0.00011098,2]
[330737064,1719746226452,2050.339894,0.00011098,2]
[330737067,1719746317159,159.26174028,0.00011099,2]
[330737070,1719746359775,205.27551127,0.00011098,2]
[330737071,1719746369466,518.46321348,0.00011098,2]
[330737072,1719746397301,378.3670316,0.00011098,2]
[330737073,1719746408636,190.35334513,0.00011098,2]
[330737077,1719746575490,450.48672625,0.00011098,2]
[330737079,1719746594384,210.02763994,0.00011098,2]
[330737082,1719746653675,409.15851751,0.00011098,2]
[330737084,1719746672379,519.72487603,0.00011098,2]
[330737085,1719746721972,158.31418936,0.00011098,2]
[330737088,1719746790929,281.12676406,0.00011098,2]
[330737089,1719746798326,441.7,0.00010571,2]
[330737091,1719746957174,-681.0,0.00011195,2]
[330737092,1719746957194,-300.0,0.00011198,2]
[330737093,1719746957214,-1856.3314,0.00011199,2]
[330737110,1719747032118,-1935.23226309,0.00011199,2]
[330737111,1719747032129,-784.98522457,0.00011199,2]
[330737112,1719747032140,-1578.55756815,0.00011199,2]
[330737113,1719747032151,-8490.91252896,0.00011199,2]
[330737114,1719747032160,-240.83727174,0.00012302,2]
[330737115,1719747032169,-1000.0,0.00012423,2]
[330737116,1719747032179,-150.0,0.00012425,2]
[330737117,1719747032189,-920.59,0.00012459,2]
[330737118,1719747032198,-250.0,0.00012474,2]
[330737119,1719747032207,-196.69,0.00012492,2]
[330737120,1719747032216,-3055.33,0.00012498,2]
[330737121,1719747032225,-23900.0,0.00012511,2]
[330737122,1719747032234,-200.0,0.00012524,2]
[330737123,1719747032243,-15338.84,0.00012525,2]
[330737124,1719747032252,-6067.56,0.00012525,2]
[330737125,1719747032261,-250.0,0.00012537,2]
[330737126,1719747032270,-151.3,0.00012577,2]
[330737127,1719747032280,-929.18,0.0001258,2]
[330737128,1719747032289,-286.76073775,0.00012809,2]
[330737129,1719747032301,-213.22926225,0.00012809,2]
[330737130,1719747032310,-183.85458196,0.00012835,2]
[330737131,1719747032321,-257.84541804,0.00012835,2]
[330737132,1719747032330,-705.25514171,0.00012847,2]
[330737133,1719747032340,-173.41,0.00012889,2]
[330737134,1719747032349,-150.0,0.00013278,2]
[330737135,1719747032358,-150.77,0.00013278,2]
[330737136,1719747032367,-528.19,0.00013278,2]
[330737137,1719747032376,-164.78,0.00013278,2]
[330737138,1719747032386,-384.2,0.00013699,2]
[330737139,1719747032395,-845.14,0.00013699,2]
[330737140,1719747032404,-212.83,0.00013699,2]
[330737141,1719747032413,-650.91919934,0.00013849,2]
[330737142,1719747032422,-589.24974,0.0001385,2]
[330737143,1719747032431,-500.0,0.00013888,2]
[330737144,1719747032440,-3883.22281427,0.00013888,2]
[330737145,1719747032462,-447.15046336,0.00013888,2]
[330737146,1719747032473,-2025.59405055,0.00013888,2]
[330737147,1719747032486,-2796.90567683,0.00013888,2]
[330737148,1719747032499,-2933.33267482,0.00013888,2]
[330737149,1719747032510,-3618.48969762,0.00013888,2]
[330737150,1719747032519,-9774.77903418,0.00013888,2]
[330737151,1719747032530,-2170.05620534,0.00013889,2]
[330737152,1719747032541,-455.84,0.00013889,2]
[330737153,1719747032553,-546.07689466,0.00013889,2]
[330737154,1719747032562,-14755.1167,0.00013889,2]
[330737155,1719747032571,-1308.95694238,0.0001389,2]
[330737156,1719747032580,-195.50132898,0.0001389,2]
[330737157,1719747032589,-9616.6666,0.0001389,2]
[330737158,1719747032599,-16149.3312,0.0001389,2]
[330737159,1719747032608,-283.54219834,0.00013899,2]
[330737160,1719747032618,-3179.3402153,0.000139,2]
[330737161,1719747032627,-212.98153932,0.000139,2]
[330737162,1719747032636,-168.91612717,0.000139,2]
[330737163,1719747032645,-500.0,0.0001394,2]
[330737164,1719747032654,-200.0,0.0001394,2]
[330737165,1719747032663,-385.10220627,0.00013946,2]
[330737166,1719747032672,-1000.0,0.00013976,2]
[330737167,1719747032682,-1135.41,0.00013979,2]
[330737168,1719747032691,-1135.41,0.00013979,2]
[330737169,1719747032700,-1135.41,0.0001398,2]
[330737170,1719747032709,-1135.41,0.0001398,2]
[330737171,1719747032719,-349.70491421,0.00013988,5]
[330737172,1719747032733,-1232.0,0.00013988,3]
[330737173,1719747032743,-1405.99,0.00013988,3]
[330737174,1719747032752,-785.79,0.00013988,3]
[330737175,1719747032763,-500.0,0.00013988,3]
[330737176,1719747032774,-1113.37,0.00013988,3]
[330737177,1719747032783,-1235.5,0.00013988,3]
[330737178,1719747032793,-2016.63,0.00013988,3]
[330737179,1719747032806,-839.6,0.00013988,3]
[330737180,1719747032817,-500.0,0.00013988,3]
[330737181,1719747032827,-582.9,0.00013988,3]
[330737182,1719747032836,-1596.75,0.00013988,3]
[330737183,1719747032847,-875.52,0.00013988,3]
[330737184,1719747032859,-412.97305957,0.00013988,3]
[330737185,1719747032868,-1077.61,0.00013988,3]
[330737186,1719747032878,-825.93,0.00013988,3]
[330737187,1719747032887,-893.18,0.00013988,3]
[330737188,1719747032896,-500.0,0.00013988,3]
[330737189,1719747032907,-500.0,0.00013988,3]
[330737190,1719747032916,-976.58,0.00013988,3]
[330737191,1719747032925,-643.58,0.00013988,3]
[330737192,1719747032934,-500.0,0.00013988,3]
[330737193,1719747032944,-500.0,0.00013988,3]
[330737194,1719747032953,-500.0,0.00013988,3]
[330737195,1719747032963,-315.72,0.00013988,3]
[330737196,1719747032972,-688.61,0.00013988,3]
[330737197,1719747032981,-663.92,0.00013989,3]
[330737198,1719747032991,-500.0,0.00013989,3]
[330737199,1719747033000,-871.17,0.00013989,3]
[330737200,1719747033010,-500.0,0.00013989,3]
[330737201,1719747033019,-500.0,0.00013989,3]
[330737202,1719747033030,-1212.96,0.00013989,3]
[330737203,1719747033039,-500.0,0.00013989,3]
[330737204,1719747033048,-702.09,0.00013989,3]
[330737205,1719747033059,-500.0,0.00013989,3]
[330737206,1719747033069,-500.0,0.00013989,3]
[330737207,1719747033079,-983.75,0.00013989,3]
[330737208,1719747033090,-515.5,0.00013989,3]
[330737209,1719747033101,-500.0,0.00013989,3]
[330737210,1719747033111,-858.58,0.00013989,3]
[330737211,1719747033121,-500.0,0.00013989,3]
[330737212,1719747033132,-798.92,0.00013989,3]
[330737213,1719747033142,-775.49,0.00013989,3]
[330737214,1719747033152,-680.56,0.00013989,3]
[330737215,1719747033161,-500.0,0.00013989,3]
[330737216,1719747033170,-729.36,0.00013989,3]
[330737217,1719747033178,-909.31,0.00013989,3]
[330737218,1719747033188,-784.55,0.00013989,3]
[330737219,1719747033198,-911.51,0.00013989,3]
[330737220,1719747033207,-833.88,0.00013989,3]
[330737221,1719747033216,-500.0,0.00013989,3]
[330737223,1719747033225,-1019.12,0.00013989,3]
[330737224,1719747033235,-500.0,0.00013989,3]
[330737225,1719747033244,-623.39,0.00013989,3]
[330737226,1719747033254,-715.06,0.00013989,3]
[330737227,1719747033263,-502.69,0.00013989,3]
[330737228,1719747033272,-800.43,0.00013989,3]
[330737229,1719747033282,-500.0,0.00013989,3]
[330737230,1719747033292,-500.0,0.00013989,3]
[330737231,1719747033301,-660.29,0.00013989,3]
[330737232,1719747033310,-882.82,0.00013989,3]
[330737233,1719747033319,-830.3,0.00013989,3]
[330737234,1719747033328,-774.01,0.00013989,3]
[330737235,1719747033337,-579.16,0.00013989,3]
[330737236,1719747033347,-500.0,0.00013989,3]
[330737237,1719747033356,-500.0,0.00013989,3]
[330737238,1719747033366,-816.48,0.00013989,3]
[330737239,1719747033375,-500.0,0.00013989,3]
[330737240,1719747033385,-500.0,0.00013989,3]
[330737241,1719747033395,-500.0,0.00013989,3]
[330737242,1719747033404,-825.75,0.00013989,3]
[330737243,1719747033414,-922.68,0.00013989,3]
[330737244,1719747033423,-517.58,0.00013989,3]
[330737245,1719747033434,-664.89,0.00013989,3]
[330737246,1719747033443,-4782.04,0.00013989,3]
[330737247,1719747033453,-500.0,0.00013989,3]
[330737248,1719747033463,-500.0,0.00013989,3]
[330737249,1719747033472,-500.0,0.00013989,3]
[330737250,1719747033481,-539.77,0.00013989,3]
[330737251,1719747033491,-304.26,0.00013989,3]
[330737252,1719747033501,-500.0,0.00013989,3]
[330737253,1719747033510,-979.48,0.00013989,3]
[330737254,1719747033519,-686.04,0.00013989,3]
[330737255,1719747033532,-500.0,0.00013989,3]
[330737256,1719747033542,-500.0,0.00013989,3]
[330737257,1719747033555,-519.75,0.00013989,3]
[330737258,1719747033565,-772.25,0.00013989,3]
[330737259,1719747033575,-500.0,0.00013989,2]
[330737260,1719747033586,-500.0,0.00013989,3]
[330737261,1719747033596,-500.0,0.00013989,3]
[330737262,1719747033605,-1008.34,0.00013989,3]
[330737263,1719747033614,-500.0,0.00013989,3]
[330737264,1719747033624,-500.0,0.00013989,3]
[330737265,1719747033633,-576.83,0.00013989,3]
[330737266,1719747033642,-500.0,0.00013989,3]
[330737267,1719747033652,-500.0,0.00013989,3]
[330737268,1719747033661,-500.0,0.00013989,3]
[330737269,1719747033671,-500.0,0.00013989,3]
[330737270,1719747033681,-2966.1,0.00013989,3]
[330737271,1719747033691,-503.12,0.00013989,3]
[330737272,1719747033700,-584.35,0.00013989,3]
[330737273,1719747033709,-789.35,0.00013989,3]
[330737274,1719747033719,-711.59,0.00013989,3]
[330737275,1719747033729,-500.0,0.00013989,3]
[330737276,1719747033742,-662.9,0.00013989,3]
[330737277,1719747033751,-569.47,0.00013989,3]
[330737278,1719747033761,-2217.19,0.00013989,3]
[330737279,1719747033772,-297.5123735,0.00013989,3]
[330737280,1719747033786,-903.08,0.00013989,3]
[330737281,1719747033795,-500.0,0.00013989,3]
[330737282,1719747033805,-500.0,0.00013989,3]
[330737283,1719747033815,-500.0,0.00013989,3]
[330737284,1719747033825,-500.0,0.00013989,3]
[330737285,1719747033834,-1110.5,0.00013989,3]
[330737286,1719747033844,-367.42,0.00013989,3]
[330737287,1719747033854,-1437.22,0.00013989,3]
[330737288,1719747033864,-500.0,0.00013989,3]
[330737289,1719747033873,-653.76,0.00013989,3]
[330737290,1719747033883,-500.0,0.00013989,3]
[330737291,1719747033893,-500.0,0.00013989,3]
[330737292,1719747033905,-500.0,0.00013989,3]
[330737293,1719747033915,-500.0,0.00013989,3]
[330737294,1719747033925,-500.0,0.00013989,3]
[330737295,1719747033935,-500.0,0.00013989,3]
[330737296,1719747033947,-1006.31,0.00013989,3]
[330737297,1719747033957,-1593.78,0.00013989,3]
[330737298,1719747033967,-640.08,0.00013989,3]
[330737299,1719747033977,-500.0,0.00013989,3]
[330737300,1719747033986,-861.42,0.00013989,3]
[330737301,1719747033996,-516.67,0.00013989,3]
[330737302,1719747034005,-500.0,0.00013989,3]
[330737303,1719747034014,-1101.22,0.00013989,3]
[330737304,1719747034023,-891.57,0.00013989,3]
[330737305,1719747034034,-697.41,0.00013989,3]
[330737306,1719747034044,-833.24,0.00013989,3]
[330737307,1719747034053,-879.98,0.00013989,3]
[330737308,1719747034063,-1109.59,0.00013989,3]
[330737309,1719747034074,-695.1,0.00013989,3]
[330737310,1719747034085,-1540.48,0.00013989,3]
[330737311,1719747034095,-500.0,0.00013989,3]
[330737312,1719747034104,-1301.32,0.00013989,3]
[330737313,1719747034114,-500.0,0.00013989,3]
[330737314,1719747034123,-561.04,0.00013989,3]
[330737315,1719747034133,-587.37,0.00013989,3]
[330737316,1719747034142,-500.0,0.00013989,3]
[330737317,1719747034152,-500.0,0.00013989,2]
[330737318,1719747034161,-989.71,0.00013989,3]
[330737319,1719747034170,-683.62,0.00013989,3]
[330737320,1719747034180,-1518.06,0.00013989,3]
[330737321,1719747034189,-500.0,0.00013989,3]
[330737322,1719747034199,-500.0,0.00013989,3]
[330737323,1719747034208,-500.0,0.00013989,3]
[330737324,1719747034218,-500.0,0.00013989,3]
[330737325,1719747034227,-500.0,0.00013989,3]
[330737326,1719747034237,-637.65,0.00013989,3]
[330737327,1719747034247,-925.05,0.00013989,3]
[330737328,1719747034256,-616.65,0.00013989,3]
[330737329,1719747034266,-725.07,0.00013989,3]
[330737330,1719747034277,-734.31,0.00013989,3]
[330737331,1719747034287,-2085.99,0.00013989,3]
[330737332,1719747034297,-529.11,0.00013989,3]